[Event "Early-Titled-Tuesday-Blitz-February-27-2024"]
[Site "Chess.com"]
[Date "2024.02.27"]
[Round "7"]
[White "FontVella8"]
[Black "JERO-8914"]
[Result "1/2-1/2"]
[WhiteElo "2706"]
[BlackElo "2477"]
[TimeControl "180+1"]
[EndTime "9:16:57 PST"]
[Termination "Game drawn by repetition"]

1. e4 {[%clk 0:03:00.5]} 1... c6 {[%clk 0:02:55.6]} 2. d4 {[%clk 0:03:00.2]}
2... d5 {[%clk 0:02:56.5]} 3. Nc3 {[%clk 0:02:58.3]} 3... dxe4 {[%clk
0:02:54.8]} 4. Nxe4 {[%clk 0:02:58.8]} 4... Nd7 {[%clk 0:02:50.7]} 5. Nf3 {[%clk
0:02:56.8]} 5... Ngf6 {[%clk 0:02:51]} 6. Ng3 {[%clk 0:02:57.2]} 6... e6 {[%clk
0:02:51]} 7. c3 {[%clk 0:02:57.4]} 7... Bd6 {[%clk 0:02:51.4]} 8. Bd3 {[%clk
0:02:57.6]} 8... O-O {[%clk 0:02:51.9]} 9. O-O {[%clk 0:02:58]} 9... b6 {[%clk
0:02:51.5]} 10. a4 {[%clk 0:02:57.1]} 10... a5 {[%clk 0:02:48.8]} 11. Re1 {[%clk
0:02:54.3]} 11... Bb7 {[%clk 0:02:48.8]} 12. Ng5 {[%clk 0:02:53.6]} 12... h6
{[%clk 0:02:47.1]} 13. N5e4 {[%clk 0:02:53.8]} 13... Be7 {[%clk 0:02:47.5]} 14.
Qf3 {[%clk 0:02:51.4]} 14... Qc8 {[%clk 0:02:43.2]} 15. Nh5 {[%clk 0:02:46.2]}
15... Nxh5 {[%clk 0:02:33.2]} 16. Qxh5 {[%clk 0:02:45.8]} 16... f5 {[%clk
0:02:33.5]} 17. Qg6 {[%clk 0:02:29.5]} 17... fxe4 {[%clk 0:02:22.1]} 18. Qxe6+
{[%clk 0:02:08]} 18... Rf7 {[%clk 0:02:21.8]} 19. Bc4 {[%clk 0:02:05]} 19... Qe8
{[%clk 0:02:16.9]} 20. Rxe4 {[%clk 0:02:02]} 20... Ba6 {[%clk 0:02:06.1]} 21.
Ba2 {[%clk 0:01:46.2]} 21... Kf8 {[%clk 0:01:59]} 22. Bxh6 {[%clk 0:01:33.1]}
22... Nf6 {[%clk 0:01:58.6]} 23. Re5 {[%clk 0:00:56.7]} 23... gxh6 {[%clk
0:01:55.1]} 24. Rae1 {[%clk 0:00:57]} 24... Ra7 {[%clk 0:01:53.9]} 25. Qh3
{[%clk 0:00:50.4]} 25... Ng8 {[%clk 0:01:48.2]} 26. R1e3 {[%clk 0:00:22.9]}
26... Qc8 {[%clk 0:01:44.7]} 27. Qh5 {[%clk 0:00:16.4]} 27... Bd6 {[%clk
0:01:38.1]} 28. Re8+ {[%clk 0:00:06.2]} 28... Qxe8 {[%clk 0:01:36.7]} 29. Rxe8+
{[%clk 0:00:07.1]} 29... Kxe8 {[%clk 0:01:37.6]} 30. Bxf7+ {[%clk 0:00:05.6]}
30... Rxf7 {[%clk 0:01:36.8]} 31. Qg6 {[%clk 0:00:05.6]} 31... Nf6 {[%clk
0:01:26.7]} 32. Qxh6 {[%clk 0:00:03.3]} 32... Re7 {[%clk 0:01:22]} 33. f3 {[%clk
0:00:02.5]} 33... c5 {[%clk 0:01:19.6]} 34. Qxf6 {[%clk 0:00:02]} 34... Kd7
{[%clk 0:01:16.6]} 35. Qf5+ {[%clk 0:00:02.1]} 35... Kc7 {[%clk 0:01:15.3]} 36.
g4 {[%clk 0:00:02.8]} 36... Bc8 {[%clk 0:01:13.2]} 37. Qf6 {[%clk 0:00:03.4]}
37... Ba6 {[%clk 0:01:09.3]} 38. Kf2 {[%clk 0:00:02.4]} 38... Re2+ {[%clk
0:01:07.7]} 39. Kg1 {[%clk 0:00:02.8]} 39... Rxb2 {[%clk 0:01:04.1]} 40. h4
{[%clk 0:00:02.6]} 40... Rb1+ {[%clk 0:01:01.6]} 41. Kf2 {[%clk 0:00:02.5]}
41... cxd4 {[%clk 0:00:58.6]} 42. cxd4 {[%clk 0:00:02.2]} 42... Rb2+ {[%clk
0:00:57.5]} 43. Kg1 {[%clk 0:00:02.6]} 43... Rb1+ {[%clk 0:00:56.2]} 44. Kg2
{[%clk 0:00:03.1]} 44... Rb2+ {[%clk 0:00:56.6]} 45. Kg1 {[%clk 0:00:03.7]}
45... Rb1+ {[%clk 0:00:57.1]} 46. Kg2 {[%clk 0:00:04.4]} 46... Bf1+ {[%clk
0:00:56.4]} 47. Kf2 {[%clk 0:00:04.5]} 47... Bc4 {[%clk 0:00:53.4]} 48. Qg7+
{[%clk 0:00:04.1]} 48... Kc6 {[%clk 0:00:52.2]} 49. d5+ {[%clk 0:00:04.2]} 49...
Bxd5 {[%clk 0:00:50]} 50. h5 {[%clk 0:00:04.3]} 50... Bc5+ {[%clk 0:00:47.7]}
51. Kg3 {[%clk 0:00:04.1]} 51... Rf1 {[%clk 0:00:45.3]} 52. h6 {[%clk 0:00:03]}
52... Rxf3+ {[%clk 0:00:43.6]} 53. Kh4 {[%clk 0:00:03.5]} 53... Bf2+ {[%clk
0:00:41.8]} 54. Kg5 {[%clk 0:00:02.9]} 54... Be3+ {[%clk 0:00:41.1]} 55. Kh4
{[%clk 0:00:03.4]} 55... Bf2+ {[%clk 0:00:40.7]} 56. Kg5 {[%clk 0:00:03.6]}
56... Be3+ {[%clk 0:00:41.3]} 57. Kh4 {[%clk 0:00:01.8]} 57... Bf2+ {[%clk
0:00:41.6]} 1/2-1/2

[Event "Early-Titled-Tuesday-Blitz-February-27-2024"]
[Site "Chess.com"]
[Date "2024.02.27"]
[Round "7"]
[White "Rodalquilar"]
[Black "FARIZA2018"]
[Result "1-0"]
[WhiteElo "2790"]
[BlackElo "2592"]
[TimeControl "180+1"]
[EndTime "9:16:59 PST"]
[Termination "Rodalquilar won on time"]

1. d4 {[%clk 0:03:00.9]} 1... Nf6 {[%clk 0:03:00.1]} 2. Nf3 {[%clk 0:03:01.4]}
2... d5 {[%clk 0:03:00.2]} 3. Bf4 {[%clk 0:03:01.7]} 3... c5 {[%clk 0:03:00.2]}
4. e3 {[%clk 0:03:02.1]} 4... Nc6 {[%clk 0:03:00.5]} 5. c3 {[%clk 0:03:02.7]}
5... Qb6 {[%clk 0:03:00.7]} 6. Qc2 {[%clk 0:03:03.2]} 6... g6 {[%clk 0:02:59.1]}
7. h3 {[%clk 0:03:03.3]} 7... Bf5 {[%clk 0:02:58.9]} 8. dxc5 {[%clk 0:03:03.9]}
8... Qxc5 {[%clk 0:02:58.1]} 9. Qb3 {[%clk 0:03:04.4]} 9... Na5 {[%clk
0:02:36.3]} 10. Qb5+ {[%clk 0:02:51.1]} 10... Qxb5 {[%clk 0:02:36.4]} 11. Bxb5+
{[%clk 0:02:51.1]} 11... Bd7 {[%clk 0:02:36.7]} 12. a4 {[%clk 0:02:40.5]} 12...
Nc4 {[%clk 0:02:15.7]} 13. Nbd2 {[%clk 0:02:23.7]} 13... Nxd2 {[%clk 0:02:13.2]}
14. Kxd2 {[%clk 0:02:18.2]} 14... Bg7 {[%clk 0:02:12.6]} 15. Rhd1 {[%clk
0:02:16.8]} 15... O-O {[%clk 0:02:10.3]} 16. Ke2 {[%clk 0:02:17.1]} 16... e6
{[%clk 0:01:38.7]} 17. Ne5 {[%clk 0:02:01.9]} 17... Bxb5+ {[%clk 0:01:35.6]} 18.
axb5 {[%clk 0:02:02.3]} 18... Ne4 {[%clk 0:01:27.6]} 19. f3 {[%clk 0:01:28.2]}
19... Nc5 {[%clk 0:01:17.1]} 20. b4 {[%clk 0:01:13.1]} 20... Bxe5 {[%clk
0:01:16.3]} 21. Bxe5 {[%clk 0:01:08.6]} 21... Nd7 {[%clk 0:01:14.8]} 22. Bd4
{[%clk 0:01:03.6]} 22... b6 {[%clk 0:01:04.5]} 23. e4 {[%clk 0:01:03.7]} 23...
dxe4 {[%clk 0:01:01.8]} 24. fxe4 {[%clk 0:01:04.1]} 24... e5 {[%clk 0:01:00.2]}
25. Be3 {[%clk 0:01:03.7]} 25... Nf6 {[%clk 0:00:59.6]} 26. Kf3 {[%clk
0:01:04.3]} 26... Rfc8 {[%clk 0:00:57.9]} 27. Rd6 {[%clk 0:00:59]} 27... Ne8
{[%clk 0:00:54]} 28. Rc6 {[%clk 0:00:52.9]} 28... Rd8 {[%clk 0:00:50.8]} 29. c4
{[%clk 0:00:44.5]} 29... f5 {[%clk 0:00:35.3]} 30. exf5 {[%clk 0:00:28.1]} 30...
gxf5 {[%clk 0:00:35]} 31. g4 {[%clk 0:00:28.7]} 31... f4 {[%clk 0:00:33.6]} 32.
Bf2 {[%clk 0:00:29.2]} 32... Kf7 {[%clk 0:00:32.8]} 33. Ke4 {[%clk 0:00:26.1]}
33... Rd2 {[%clk 0:00:29.1]} 34. Bh4 {[%clk 0:00:20.8]} 34... Re2+ {[%clk
0:00:27.4]} 35. Kf5 {[%clk 0:00:21.2]} 35... Ng7+ {[%clk 0:00:26.4]} 36. Kg5
{[%clk 0:00:21.8]} 36... Ne6+ {[%clk 0:00:24.1]} 37. Kh6 {[%clk 0:00:22.3]}
37... f3 {[%clk 0:00:21]} 38. Rd1 {[%clk 0:00:16.8]} 38... Nf8 {[%clk
0:00:11.2]} 39. Rc7+ {[%clk 0:00:12.4]} 39... Kg8 {[%clk 0:00:04.6]} 40. Rg7+
{[%clk 0:00:12.6]} 40... Kh8 {[%clk 0:00:04.7]} 41. Bf6 {[%clk 0:00:13.1]} 1-0

[Event "Early-Titled-Tuesday-Blitz-February-27-2024"]
[Site "Chess.com"]
[Date "2024.02.27"]
[Round "7"]
[White "ansko1999"]
[Black "Janosik"]
[Result "0-1"]
[WhiteElo "2733"]
[BlackElo "2868"]
[TimeControl "180+1"]
[EndTime "9:17:01 PST"]
[Termination "Janosik won on time"]

1. Nf3 {[%clk 0:03:00.9]} 1... d5 {[%clk 0:02:57]} 2. e3 {[%clk 0:03:00.4]} 2...
c6 {[%clk 0:02:56.6]} 3. b3 {[%clk 0:02:58.3]} 3... Nf6 {[%clk 0:02:56.6]} 4.
Bb2 {[%clk 0:02:58.4]} 4... Bf5 {[%clk 0:02:57.1]} 5. Be2 {[%clk 0:02:51.9]}
5... h6 {[%clk 0:02:56.6]} 6. O-O {[%clk 0:02:51.7]} 6... e6 {[%clk 0:02:55.6]}
7. c4 {[%clk 0:02:48.2]} 7... Be7 {[%clk 0:02:55.7]} 8. Nc3 {[%clk 0:02:48.1]}
8... O-O {[%clk 0:02:55.4]} 9. Rc1 {[%clk 0:02:46.5]} 9... Nbd7 {[%clk
0:02:55.6]} 10. a3 {[%clk 0:02:45.1]} 10... a5 {[%clk 0:02:56]} 11. h3 {[%clk
0:02:42.3]} 11... Re8 {[%clk 0:02:56.1]} 12. d3 {[%clk 0:02:41.6]} 12... Bh7
{[%clk 0:02:55.8]} 13. Re1 {[%clk 0:02:37.1]} 13... Bf8 {[%clk 0:02:55.3]} 14.
Qd2 {[%clk 0:02:31.2]} 14... Nc5 {[%clk 0:02:53.5]} 15. Qd1 {[%clk 0:02:19.3]}
15... dxc4 {[%clk 0:02:47.9]} 16. bxc4 {[%clk 0:02:17.2]} 16... Nxd3 {[%clk
0:02:28.8]} 17. Bxd3 {[%clk 0:02:16.2]} 17... Qxd3 {[%clk 0:02:26]} 18. Qb3
{[%clk 0:02:13.2]} 18... a4 {[%clk 0:02:04.4]} 19. Qb6 {[%clk 0:01:55.7]} 19...
Qxc4 {[%clk 0:01:53]} 20. Qxb7 {[%clk 0:01:35.1]} 20... Qb3 {[%clk 0:01:09.6]}
21. Qxb3 {[%clk 0:01:09.9]} 21... axb3 {[%clk 0:01:10.5]} 22. a4 {[%clk
0:00:59.7]} 22... Bb4 {[%clk 0:01:01.3]} 23. Nd4 {[%clk 0:00:58.1]} 23... c5
{[%clk 0:00:51.3]} 24. Nxb3 {[%clk 0:00:56.3]} 24... Reb8 {[%clk 0:00:40.2]} 25.
Nd2 {[%clk 0:00:40.5]} 25... Nd5 {[%clk 0:00:35.5]} 26. Red1 {[%clk 0:00:29.3]}
26... Nxc3 {[%clk 0:00:20.1]} 27. Bxc3 {[%clk 0:00:30.2]} 27... Rxa4 {[%clk
0:00:18.6]} 28. e4 {[%clk 0:00:17.6]} 28... f6 {[%clk 0:00:14.8]} 29. Bxb4
{[%clk 0:00:14.2]} 29... cxb4 {[%clk 0:00:14.3]} 30. Rc7 {[%clk 0:00:14.2]}
30... Bg6 {[%clk 0:00:09.1]} 31. Nb3 {[%clk 0:00:11.2]} 31... Be8 {[%clk
0:00:08.7]} 32. Nc5 {[%clk 0:00:10]} 32... Ra2 {[%clk 0:00:07.1]} 33. Nxe6
{[%clk 0:00:10]} 33... b3 {[%clk 0:00:07.6]} 34. Rxg7+ {[%clk 0:00:08.8]} 34...
Kh8 {[%clk 0:00:08.2]} 35. Re7 {[%clk 0:00:03.9]} 35... b2 {[%clk 0:00:07.3]}
36. Kh2 {[%clk 0:00:02.3]} 36... Bg6 {[%clk 0:00:05.5]} 37. Rdd7 {[%clk
0:00:02.2]} 37... b1=Q {[%clk 0:00:04.9]} 38. Nf4 {[%clk 0:00:02.1]} 38... Qxe4
{[%clk 0:00:04.9]} 39. Rxe4 {[%clk 0:00:01.8]} 39... Bxe4 {[%clk 0:00:05.8]} 40.
Re7 {[%clk 0:00:01.8]} 40... Bh7 {[%clk 0:00:06.1]} 41. Nh5 {[%clk 0:00:01.8]}
41... Ra6 {[%clk 0:00:06.7]} 42. Ng7 {[%clk 0:00:01.9]} 42... Rg8 {[%clk
0:00:06.4]} 43. Ne8 {[%clk 0:00:01.1]} 43... Rc6 {[%clk 0:00:06.1]} 44. f4
{[%clk 0:00:01.2]} 44... Bg6 {[%clk 0:00:06.3]} 45. Nc7 {[%clk 0:00:01.1]} 45...
Rg7 {[%clk 0:00:06.9]} 0-1

[Event "Early-Titled-Tuesday-Blitz-February-27-2024"]
[Site "Chess.com"]
[Date "2024.02.27"]
[Round "7"]
[White "Shield12"]
[Black "GMAkobianSTL"]
[Result "1-0"]
[WhiteElo "2983"]
[BlackElo "2823"]
[TimeControl "180+1"]
[EndTime "9:17:02 PST"]
[Termination "Shield12 won by resignation"]

1. e4 {[%clk 0:03:00.9]} 1... e6 {[%clk 0:02:59.4]} 2. d4 {[%clk 0:03:00.3]}
2... d5 {[%clk 0:02:59.5]} 3. e5 {[%clk 0:03:00.7]} 3... c5 {[%clk 0:02:59.4]}
4. c3 {[%clk 0:03:01.4]} 4... Qb6 {[%clk 0:02:59.6]} 5. Nf3 {[%clk 0:03:01.3]}
5... Nc6 {[%clk 0:02:58.7]} 6. Be2 {[%clk 0:03:00.8]} 6... cxd4 {[%clk 0:02:58]}
7. cxd4 {[%clk 0:03:00.5]} 7... Nge7 {[%clk 0:02:58.6]} 8. Na3 {[%clk
0:03:00.2]} 8... Nf5 {[%clk 0:02:58.6]} 9. Nc2 {[%clk 0:03:01.1]} 9... Bb4+
{[%clk 0:02:58.4]} 10. Kf1 {[%clk 0:03:00.7]} 10... Be7 {[%clk 0:02:58.3]} 11.
h4 {[%clk 0:03:00.5]} 11... h5 {[%clk 0:02:57.9]} 12. g3 {[%clk 0:02:55.5]}
12... Bd7 {[%clk 0:02:57.2]} 13. Kg2 {[%clk 0:02:55.1]} 13... Rc8 {[%clk
0:02:56.7]} 14. Rb1 {[%clk 0:02:53.3]} 14... Nb4 {[%clk 0:02:48.7]} 15. Nxb4
{[%clk 0:02:51.8]} 15... Qxb4 {[%clk 0:02:47.7]} 16. a3 {[%clk 0:02:44.8]} 16...
Qb6 {[%clk 0:02:47]} 17. a4 {[%clk 0:02:36.8]} 17... Rc7 {[%clk 0:02:16.5]} 18.
Bf4 {[%clk 0:02:27.3]} 18... O-O {[%clk 0:02:12.9]} 19. Bd3 {[%clk 0:02:24.4]}
19... Rfc8 {[%clk 0:02:11.7]} 20. Bg5 {[%clk 0:02:04.2]} 20... Bxg5 {[%clk
0:02:07.8]} 21. hxg5 {[%clk 0:02:03.8]} 21... g6 {[%clk 0:02:07.9]} 22. Bxf5
{[%clk 0:01:47.5]} 22... exf5 {[%clk 0:02:07.4]} 23. b3 {[%clk 0:01:29.4]} 23...
Rc2 {[%clk 0:02:00]} 24. Ne1 {[%clk 0:01:28.5]} 24... R2c3 {[%clk 0:01:57.9]}
25. Rh4 {[%clk 0:01:27.7]} 25... a5 {[%clk 0:01:47.3]} 26. Nd3 {[%clk
0:01:27.4]} 26... R3c7 {[%clk 0:01:27.3]} 27. Nf4 {[%clk 0:01:25.9]} 27... Kf8
{[%clk 0:01:19.2]} 28. Rh1 {[%clk 0:01:21.5]} 28... Be6 {[%clk 0:01:16.3]} 29.
Rb2 {[%clk 0:01:20.5]} 29... Rc1 {[%clk 0:01:10.8]} 30. Qd2 {[%clk 0:01:12.5]}
30... Rxh1 {[%clk 0:01:06.2]} 31. Kxh1 {[%clk 0:01:13.4]} 31... Qc7 {[%clk
0:01:06.3]} 32. Kg2 {[%clk 0:01:11.8]} 32... b6 {[%clk 0:01:04.9]} 33. b4 {[%clk
0:01:11.1]} 33... Ra8 {[%clk 0:00:58.4]} 34. Rc2 {[%clk 0:01:09.1]} 34... Qd8
{[%clk 0:00:58.4]} 35. Rc6 {[%clk 0:01:06.2]} 35... Qe8 {[%clk 0:00:53.4]} 36.
Rxb6 {[%clk 0:01:00.7]} 36... Qxa4 {[%clk 0:00:46.5]} 37. Nxe6+ {[%clk
0:00:50.3]} 37... fxe6 {[%clk 0:00:46]} 38. bxa5 {[%clk 0:00:49]} 38... Qxa5
{[%clk 0:00:43.4]} 39. Qxa5 {[%clk 0:00:39.4]} 39... Rxa5 {[%clk 0:00:41.7]} 40.
Rxe6 {[%clk 0:00:40.3]} 40... Kf7 {[%clk 0:00:38.5]} 41. Rf6+ {[%clk 0:00:38.2]}
41... Kg7 {[%clk 0:00:38.6]} 42. Rd6 {[%clk 0:00:34.1]} 42... Kf7 {[%clk
0:00:38.3]} 43. Kf3 {[%clk 0:00:26.7]} 43... Rb5 {[%clk 0:00:37.4]} 44. Ke3
{[%clk 0:00:26.3]} 44... Ra5 {[%clk 0:00:37.1]} 45. Kf4 {[%clk 0:00:20.7]} 45...
Rb5 {[%clk 0:00:36]} 46. Rf6+ {[%clk 0:00:20.1]} 46... Kg7 {[%clk 0:00:35.8]}
47. e6 {[%clk 0:00:20.6]} 47... Rb4 {[%clk 0:00:29.1]} 48. Ke5 {[%clk
0:00:20.3]} 48... Rb2 {[%clk 0:00:28.7]} 49. Rf7+ {[%clk 0:00:20.7]} 49... Kg8
{[%clk 0:00:28.7]} 50. Kf6 {[%clk 0:00:21.6]} 50... Rxf2 {[%clk 0:00:26.8]} 51.
Rd7 {[%clk 0:00:21.4]} 51... f4 {[%clk 0:00:25.1]} 52. Kxg6 {[%clk 0:00:18.6]}
52... fxg3 {[%clk 0:00:24.7]} 53. Rd8+ {[%clk 0:00:18.5]} 53... Rf8 {[%clk
0:00:24.4]} 54. e7 {[%clk 0:00:19.4]} 1-0

[Event "Early-Titled-Tuesday-Blitz-February-27-2024"]
[Site "Chess.com"]
[Date "2024.02.27"]
[Round "7"]
[White "Preobrazhenska_D2011"]
[Black "Fjal"]
[Result "1-0"]
[WhiteElo "2432"]
[BlackElo "2245"]
[TimeControl "180+1"]
[EndTime "9:17:02 PST"]
[Termination "Preobrazhenska_D2011 won on time"]

1. e4 {[%clk 0:03:00.1]} 1... d6 {[%clk 0:02:53.3]} 2. d4 {[%clk 0:02:59.9]}
2... Nf6 {[%clk 0:02:48]} 3. Nc3 {[%clk 0:02:59.3]} 3... g6 {[%clk 0:02:48.2]}
4. Nf3 {[%clk 0:02:59.2]} 4... Bg7 {[%clk 0:02:48.2]} 5. Bg5 {[%clk 0:02:59.9]}
5... O-O {[%clk 0:02:47.9]} 6. Qd2 {[%clk 0:02:59.1]} 6... Nbd7 {[%clk
0:02:48.3]} 7. e5 {[%clk 0:02:50.2]} 7... Ne8 {[%clk 0:02:35.1]} 8. O-O-O {[%clk
0:02:45.4]} 8... f6 {[%clk 0:02:22.2]} 9. Bc4+ {[%clk 0:02:23.7]} 9... Kh8
{[%clk 0:02:21.9]} 10. Bh6 {[%clk 0:02:23.8]} 10... fxe5 {[%clk 0:02:19.2]} 11.
Ng5 {[%clk 0:02:05.5]} 11... Bxh6 {[%clk 0:01:58.1]} 12. Nf7+ {[%clk 0:01:29.7]}
12... Rxf7 {[%clk 0:01:54.4]} 13. Qxh6 {[%clk 0:01:30.6]} 13... Rg7 {[%clk
0:01:47.6]} 14. Ne4 {[%clk 0:01:14.2]} 14... Ndf6 {[%clk 0:01:33]} 15. Ng5
{[%clk 0:01:09.8]} 15... Ng4 {[%clk 0:00:20.7]} 16. Qh4 {[%clk 0:01:09]} 16...
e4 {[%clk 0:00:17.8]} 17. Nf7+ {[%clk 0:00:51.1]} 17... Rxf7 {[%clk 0:00:18.2]}
18. Bxf7 {[%clk 0:00:52]} 18... Kg7 {[%clk 0:00:18.1]} 19. h3 {[%clk 0:00:40.4]}
19... Ngf6 {[%clk 0:00:15.8]} 20. Bb3 {[%clk 0:00:37.3]} 20... a5 {[%clk
0:00:13.9]} 21. g4 {[%clk 0:00:33.9]} 21... a4 {[%clk 0:00:13.2]} 22. Bc4 {[%clk
0:00:32.7]} 22... d5 {[%clk 0:00:13.6]} 23. Be2 {[%clk 0:00:29.4]} 23... Nd6
{[%clk 0:00:14.1]} 24. g5 {[%clk 0:00:27]} 24... Ng8 {[%clk 0:00:14.6]} 25. Qf4
{[%clk 0:00:23.6]} 25... a3 {[%clk 0:00:14.6]} 26. Qe5+ {[%clk 0:00:22.7]} 26...
Kf8 {[%clk 0:00:12.7]} 27. b3 {[%clk 0:00:23.1]} 27... Nf7 {[%clk 0:00:13]} 28.
Qg3 {[%clk 0:00:20.6]} 28... Qd6 {[%clk 0:00:13.4]} 29. Qh4 {[%clk 0:00:17.4]}
29... Kg7 {[%clk 0:00:12.5]} 30. f4 {[%clk 0:00:13.4]} 30... exf3 {[%clk
0:00:10.5]} 31. Bxf3 {[%clk 0:00:13.4]} 31... c6 {[%clk 0:00:11.3]} 32. Rhf1
{[%clk 0:00:10.4]} 32... e5 {[%clk 0:00:11.4]} 33. Bg4 {[%clk 0:00:08.7]} 33...
exd4 {[%clk 0:00:09.9]} 34. Rxd4 {[%clk 0:00:06.7]} 34... Qe5 {[%clk 0:00:09.1]}
35. Rdf4 {[%clk 0:00:03.2]} 35... Qb2+ {[%clk 0:00:08.4]} 36. Kd2 {[%clk
0:00:03.9]} 36... Ne5 {[%clk 0:00:06.5]} 37. Qg3 {[%clk 0:00:02.2]} 37... Bxg4
{[%clk 0:00:04.8]} 38. hxg4 {[%clk 0:00:03.1]} 38... Rd8 {[%clk 0:00:02.4]} 39.
Qe3 {[%clk 0:00:03.1]} 39... Ne7 {[%clk 0:00:01.6]} 40. Rf7+ {[%clk 0:00:02.5]}
40... Nxf7 {[%clk 0:00:01.3]} 41. Qxe7 {[%clk 0:00:03.2]} 1-0

[Event "Early-Titled-Tuesday-Blitz-February-27-2024"]
[Site "Chess.com"]
[Date "2024.02.27"]
[Round "7"]
[White "Evgeny81"]
[Black "deribas12345"]
[Result "1-0"]
[WhiteElo "2769"]
[BlackElo "2580"]
[TimeControl "180+1"]
[EndTime "9:17:05 PST"]
[Termination "Evgeny81 won on time"]

1. e4 {[%clk 0:02:57.5]} 1... e6 {[%clk 0:02:59.7]} 2. d4 {[%clk 0:02:54.8]}
2... d5 {[%clk 0:02:59.9]} 3. Nd2 {[%clk 0:02:55.5]} 3... c5 {[%clk 0:02:57.6]}
4. exd5 {[%clk 0:02:54.8]} 4... exd5 {[%clk 0:02:57.8]} 5. Ngf3 {[%clk
0:02:54.3]} 5... c4 {[%clk 0:02:54.9]} 6. b3 {[%clk 0:02:52.2]} 6... cxb3 {[%clk
0:02:55]} 7. axb3 {[%clk 0:02:52.1]} 7... Bd6 {[%clk 0:02:54.8]} 8. Bd3 {[%clk
0:02:50.4]} 8... Ne7 {[%clk 0:02:54.7]} 9. O-O {[%clk 0:02:49.9]} 9... O-O
{[%clk 0:02:54.7]} 10. c4 {[%clk 0:02:49.7]} 10... Nbc6 {[%clk 0:02:54.4]} 11.
Re1 {[%clk 0:02:46]} 11... Bf5 {[%clk 0:02:43.7]} 12. Nf1 {[%clk 0:02:41.7]}
12... Bb4 {[%clk 0:02:27.8]} 13. Re2 {[%clk 0:02:38]} 13... dxc4 {[%clk
0:02:19.3]} 14. Bxc4 {[%clk 0:02:25.4]} 14... Nd5 {[%clk 0:02:15.9]} 15. Bd2
{[%clk 0:02:18.7]} 15... Nc3 {[%clk 0:02:05.3]} 16. Bxc3 {[%clk 0:02:19]} 16...
Bxc3 {[%clk 0:02:05]} 17. Rc1 {[%clk 0:02:19.9]} 17... Bb4 {[%clk 0:01:49.1]}
18. d5 {[%clk 0:02:15.3]} 18... Na5 {[%clk 0:01:44.1]} 19. Ne3 {[%clk
0:02:12.6]} 19... Bg6 {[%clk 0:01:38]} 20. Qd4 {[%clk 0:02:06.6]} 20... b5
{[%clk 0:01:27.7]} 21. Bxb5 {[%clk 0:01:58.1]} 21... Nxb3 {[%clk 0:01:27]} 22.
Qxb4 {[%clk 0:01:58.1]} 22... Nxc1 {[%clk 0:01:27.2]} 23. Rd2 {[%clk 0:01:56.3]}
23... Rb8 {[%clk 0:01:22.1]} 24. Qa4 {[%clk 0:01:55.1]} 24... Qb6 {[%clk
0:01:13.9]} 25. Bf1 {[%clk 0:01:54.8]} 25... Nb3 {[%clk 0:00:49.7]} 26. Rb2
{[%clk 0:01:54.2]} 26... Qa5 {[%clk 0:00:48.9]} 27. Qxa5 {[%clk 0:01:48.4]}
27... Nxa5 {[%clk 0:00:48.7]} 28. Ra2 {[%clk 0:01:49.1]} 28... Nb7 {[%clk
0:00:33.2]} 29. Rxa7 {[%clk 0:01:38.2]} 29... Nd6 {[%clk 0:00:29.4]} 30. h4
{[%clk 0:01:38.2]} 30... Rfe8 {[%clk 0:00:26.2]} 31. Kh2 {[%clk 0:01:17.4]}
31... Rb1 {[%clk 0:00:24.8]} 32. Ra6 {[%clk 0:01:10.4]} 32... Ne4 {[%clk
0:00:25]} 33. d6 {[%clk 0:01:04.9]} 33... Nxf2 {[%clk 0:00:18.9]} 34. d7 {[%clk
0:01:04.2]} 34... Rd8 {[%clk 0:00:19.1]} 35. Ne5 {[%clk 0:00:59.5]} 35... Rb7
{[%clk 0:00:05.7]} 36. Rc6 {[%clk 0:00:54.9]} 36... f6 {[%clk 0:00:04.4]} 37.
Bc4+ {[%clk 0:00:44.7]} 37... Kf8 {[%clk 0:00:04.8]} 38. Rc8 {[%clk 0:00:45.4]}
38... Rxd7 {[%clk 0:00:03.7]} 39. Nxd7+ {[%clk 0:00:45.6]} 39... Ke7 {[%clk
0:00:03.9]} 40. Rxd8 {[%clk 0:00:43.3]} 40... Kxd8 {[%clk 0:00:04.8]} 41. Nf8
{[%clk 0:00:40.9]} 41... Be4 {[%clk 0:00:03.2]} 42. Ne6+ {[%clk 0:00:39.4]}
42... Kd7 {[%clk 0:00:03.2]} 43. Nxg7 {[%clk 0:00:39.6]} 43... Kd6 {[%clk
0:00:02.7]} 44. Kg3 {[%clk 0:00:34.6]} 44... Nh1+ {[%clk 0:00:02.8]} 45. Kf4
{[%clk 0:00:34.3]} 45... Bb1 {[%clk 0:00:02.4]} 46. Ng4 {[%clk 0:00:30.3]} 46...
Kc5 {[%clk 0:00:01.7]} 47. Bg8 {[%clk 0:00:29.7]} 47... h5 {[%clk 0:00:02.6]}
48. Nxf6 {[%clk 0:00:29.3]} 48... Nf2 {[%clk 0:00:03.3]} 49. Ngxh5 {[%clk
0:00:27.9]} 49... Nd3+ {[%clk 0:00:03.4]} 50. Ke3 {[%clk 0:00:28]} 50... Ne5
{[%clk 0:00:03.5]} 51. Bh7 {[%clk 0:00:25.7]} 51... Ng4+ {[%clk 0:00:03]} 52.
Kf4 {[%clk 0:00:22.4]} 1-0